Workbook

Sheet LIES MICH
B2: Herzlich Willkommen! | G2: Hinweis:
B3: Beachte bitte: Die Blätter dieser Arbeitsmappe sind geschützt! | G3: Bei der Zuordnung von Sachgütern zu den einzelnen Konten hat der Steirische Leitfaden
B4: Der Autor wünscht viel Erfolg beim Durcharbeiten dieser Beispieldatei! | G4: absoluten Vorrang! Er ist von einem Expertenteam erstellt worden!
B5: Noch mehr Informationen findest Du auf | E5: https://www.kommunale-doppik.at | H5: Download hier:
B6: Rückmeldungen bitte an: | E6: norbert-schweiger@aon.at | H6: https://www.verwaltung.steiermark.at/cms/dokumente/12548650_134176599/4a1f80da/2018_Leitfaden_Erfassung_Vermögenswerte_Version1_0_20181219.pdf
B7: Alles Gute und viel Erfolg!
D68: Inventarverz_ANLAGENSPIEGEL!A1

Sheet Inventarverz_ANLAGENSPIEGEL
A4: LIES MICH'!A1

Sheet 01-EBK-SACHANLAGEN
G2: Zu LIES MICH | J2: Gemeindekennzahl | L2: Gemeindebezeichnung | P2: Zu LIES MICH
J3: 0 | L3: Gemeinde MUSTER | N3: Werte per 31.12.2019 = 01.01.2020
B4: Bilanz-Position | D4: Konto | E4: Bezeichnung | F4: Betrag | H4: Datum der Erfassung | I4: Datum der Bewertung | J4: Vermögenshaushalt - SACHANLAGEN (Eröffnungsbilanz)
B5: A.I | C5: I0 | D5: 70 | E5: Rechte | F5: ='070_Aktivierungsfähige Rechte'!B20 -> 40200 | J5: Ebene | K5: Position/Gruppe | L5: A K T I V A | M5: Code | N5: Betrag Position | O5: Betrag Gruppe | P5: Betrag A.I/A.II | Q5: Summe langfristiges immat. Vermögen und Sachvermögen | S5: Abschreibung ab 2020
B6: A.I | C6: I1 | D6: 70 | E6: Lizenzen | F6: =#REF! ->  | J6: 0 | K6: A | L6: Langfristiges Vermögen | M6: 10 | Q6: =P7+P9 -> 14796704.89 | S6: =SUM(S8:S28) -> 374827.9064
B7: A.I | C7: I2 | D7: 70 | E7: Software | F7: =#REF! ->  | J7: 1 | K7: A.I | L7: Immaterielle Vermögenswerte | M7: 101 | N7: =N8 -> 40200 | P7: =N7 -> 40200 | Q7: © Norbert Schweiger 01/2018
B8: A.II.1 | C8: 1 | D8: 1 | E8: Unbebaute Grundstücke und land-und fw. Grundstücke [003] | F8: ='001_Unbebaute Grundstücke'!B22+#REF! ->  | H8: ='070_Aktivierungsfähige Rechte'!B22 -> 2018-10-15 | I8: ='070_Aktivierungsfähige Rechte'!B24 -> 2018-10-15 | J8: Klick | K8: 70 | L8: Aktivierungsfähige Rechte (immaterielle Vermögenswerte) | M8: 1010 | N8: ='070_Aktivierungsfähige Rechte'!B20 -> 40200 | S8: ='070_Aktivierungsfähige Rechte'!B27 -> 5100
B9: A.II.1 | C9: 2 | D9: 0 | E9: Bebaute Grundstücke | F9: ='000_Bebaute Grundstücke'!B20 -> 1944477.75 | J9: 1 | K9: A.II | L9: SACHANLAGEN | M9: 102 | P9: =O10+O17+O19+O21+O23+O27+O29+O32 -> 14756504.89
C10: 04a | D10: 2 | E10: Straßenbauten | F10: ='002_Straßenbauten'!B17 -> 4577224 | J10: 2 | K10: A.II.1 | L10: Grundstücke und Grundstückseinrichtungen und Infrastruktur | M10: 1021 | O10: =SUM(N11:N16) -> 11994706.08
C11: 02a | D11: 3 | E11: Grundstücke zu Straßenbauten | F11: ='003_Grundstücke z Straßenbauten'!B20 -> 218520 | H11: ='000_Bebaute Grundstücke'!B22 -> 2018-10-22 | I11: ='000_Bebaute Grundstücke'!B24 -> 2018-10-22 | J11: Klick | K11: 0 | L11: Bebaute Grundstücke | M11: 1021 | N11: ='000_Bebaute Grundstücke'!B20 -> 1944477.75
C12: 04b | D12: 5 | E12: Bauliche Anlagen zu Straßenbauten | F12: ='005_Anlagen zu Straßenbauten'!B19 -> 5781 | H12: ='001_Unbebaute Grundstücke'!B24 -> 2018-10-22 | I12: ='001_Unbebaute Grundstücke'!B26 -> 2018-10-22 | J12: Klick | K12: 1 | L12: Unbebaute Grundstücke | M12: 1021 | N12: ='001_Unbebaute Grundstücke'!B22 -> 4865370
C13: 04 | D13: 6 | E13: Sonstige Grundstückseinrichtungen | F13: =#REF! ->  | H13: ='002_Straßenbauten'!B19 -> 2018-10-22 | I13: ='002_Straßenbauten'!B21 -> 2018-10-22 | J13: Klick | K13: 2 | L13: Straßenbauten | M13: 1021 | N13: ='002_Straßenbauten'!B17 -> 4577224 | S13: ='002_Straßenbauten'!B24 -> 227008.49
C14: 04c | D14: 7 | E14: Brücken und Tunnel | F14: =#REF! ->  | H14: ='003_Grundstücke z Straßenbauten'!B22 -> 2018-10-15 | I14: ='003_Grundstücke z Straßenbauten'!B24 -> 2018-10-15 | J14: Klick | K14: 3 | L14: Grundstücke zu Straßenbauten | M14: 1021 | N14: ='003_Grundstücke z Straßenbauten'!B20 -> 218520
B15: A.II.2 | C15: 6 | D15: 10 | E15: Gebäude | F15: ='006_Sonst-Grundstückseinricht'!B20+#REF! ->  | H15: ='005_Anlagen zu Straßenbauten'!B21 -> 2018-10-24 | I15: ='005_Anlagen zu Straßenbauten'!B23 -> 2018-10-24 | J15: Klick | K15: 5 | L15: Anlagen zu Straßenbauten | M15: 1021 | N15: ='005_Anlagen zu Straßenbauten'!B19 -> 5781 | S15: ='005_Anlagen zu Straßenbauten'!B26 -> 1071
C16: 06a | D16: 11 | E16: Kinder-und Jugendeinrichtungen | F16: =#REF! ->  | H16: ='006_Sonst-Grundstückseinricht'!B22 -> 2018-10-23 | I16: ='006_Sonst-Grundstückseinricht'!B24 -> 2018-10-23 | J16: Klick | K16: 6 | L16: Sonstige Grundstückseinrichtungen | M16: 1021 | N16: ='006_Sonst-Grundstückseinricht'!B20 -> 383333.33 | S16: ='006_Sonst-Grundstückseinricht'!B27 -> 11596.16162
C17: 06c | D17: 13 | E17: Wohnbauten | F17: =#REF! ->  | J17: 2 | K17: A.II.2 | L17: Gebäude und Bauten | M17: 1022 | O17: =N18 -> 621880
C18: 06d | D18: 16 | E18: Seniorenwohnungen | F18: =#REF! ->  | H18: ='010_Gebäude und Bauten'!B22 -> 2018-10-24 | I18: ='010_Gebäude und Bauten'!B24 -> 2018-10-24 | J18: Klick | K18: 10 | L18: Gebäude und Bauten | M18: 1022 | N18: ='010_Gebäude und Bauten'!B20 -> 621880 | S18: ='010_Gebäude und Bauten'!B27 -> 16683
C19: 06f | D19: 18 | E19: Sport- und Freizeiteinrichtungen | F19: =#REF! ->  | J19: 2 | K19: A.II.3 | L19: Wasser -und Abwasserbauten und -anlagen | M19: 1023 | O19: =N20 -> 1850095.815
C20: 06g | D20: 19 | E20: Feuerwehrgebäude | F20: =#REF! ->  | H20: ='004_Wasser_Abwasserbauten_Anlag'!B22 -> 2018-10-23 | I20: ='004_Wasser_Abwasserbauten_Anlag'!B24 -> 2018-10-23 | J20: Klick | K20: 4 | L20: Wasser- und Abwasserbauten und -anlagen | M20: 1023 | N20: ='004_Wasser_Abwasserbauten_Anlag'!B20 -> 1850095.815 | S20: ='004_Wasser_Abwasserbauten_Anlag'!B27 -> 95911.25483
B21: A.II.3 | C21: 5 | D21: 4 | E21: Wasser- und Kanalanlagen | F21: ='004_Wasser_Abwasserbauten_Anlag'!B20 -> 1850095.815 | J21: 2 | K21: A.II.4 | L21: Sonderanlagen | M21: 1024 | O21: =N22 -> 239146
B22: A.II.4 | C22: 91 | D22: 50 | E22: Sonderanlagen | F22: ='050_Sonderanlagen'!B20 -> 239146 | H22: ='050_Sonderanlagen'!B22 -> 2018-10-24 | I22: ='050_Sonderanlagen'!B24 -> 2018-10-24 | J22: Klick | K22: 50 | L22: Sonderanlagen | M22: 1024 | N22: ='050_Sonderanlagen'!B20 -> 239146 | S22: ='050_Sonderanlagen'!B27 -> 8178
B23: A.II.5 | C23: 40 | D23: 20 | E23: Elektronische Maschinen | F23: =#REF! ->  | J23: 2 | K23: A.II.5 | L23: Technische Anlagen, Fahrzeuge und Maschinen | M23: 1025 | O23: =SUM(N24:N26) -> 39534
B24: AII.5 | C24: 41 | D24: 20 | E24: Motoren und Turbinen | F24: =#REF! ->  | H24: ='020_Maschinen und masch Anlagen'!$B$22 -> 2018-10-24 | I24: ='020_Maschinen und masch Anlagen'!$B$24 -> 2018-10-24 | J24: Klick | K24: 20 | L24: Maschinen und maschinelle Anlagen | M24: 1025 | N24: ='020_Maschinen und masch Anlagen'!B20 -> 843 | S24: ='020_Maschinen und masch Anlagen'!B27 -> 94
H25: ='030_Werkzeuge und sonst. Erzeug'!B22 -> 2018-10-26 | I25: ='030_Werkzeuge und sonst. Erzeug'!B24 -> 2018-10-26 | J25: Klick | K25: 30 | L25: Werkzeuge und sonstige Erzeugungsmittel | M25: 1025 | N25: ='030_Werkzeuge und sonst. Erzeug'!B20 -> 1741 | S25: ='030_Werkzeuge und sonst. Erzeug'!B27 -> 249
H26: ='040_Fahrzeuge'!B22 -> 2018-10-25 | I26: ='040_Fahrzeuge'!B24 -> 2018-10-25 | J26: Klick | K26: 40 | L26: Fahrzeuge | M26: 1025 | N26: ='040_Fahrzeuge'!B20 -> 36950 | S26: ='040_Fahrzeuge'!B27 -> 8200
J27: 2 | K27: A.II.6 | L27: Amts-, Betriebs- und Geschäftsausstattung | M27: 1026 | O27: =N28 -> 4362
H28: ='042_Amts-Betriebs-Geschäftsauss'!B22 -> 2018-10-26 | I28: ='042_Amts-Betriebs-Geschäftsauss'!B24 -> 2018-10-26 | J28: Klick | K28: 42 | L28: Amts-, Betriebs- und Geschäftsausstattung | M28: 1026 | N28: ='042_Amts-Betriebs-Geschäftsauss'!B20 -> 4362 | S28: ='042_Amts-Betriebs-Geschäftsauss'!B27 -> 737
J29: 2 | K29: A.II.7 | L29: Kulturgüter | M29: 1027 | O29: =N30+N31 -> 6781
H30: ='015-Kulturgüter unbeweglich'!B22 -> 2016-01-01 | I30: ='015-Kulturgüter unbeweglich'!B24 -> 2016-01-01 | J30: Klick | K30: 15 | L30: Kulturgüter unbeweglich | M30: 1027 | N30: ='015-Kulturgüter unbeweglich'!B20 -> 0
H31: ='046_Kulturgüter beweglich'!B22 -> 2019-01-23 | I31: ='046_Kulturgüter beweglich'!B24 -> 2019-01-23 | J31: Klick | K31: 46 | L31: Kulturgüter beweglich | M31: 1027 | N31: ='046_Kulturgüter beweglich'!B20 -> 6781
B32: AII.5 | C32: 43 | D32: 20 | E32: Kompressoren und Pumpen | F32: =#REF! ->  | J32: 2 | K32: A.II.8 | L32: Geleistete Anzahlungen für Anlagen und Anlagen im Bau | M32: 1028 | O32: =N34+N35+N36+N37+N33 -> 0
H33: ='280_Geleist_Anzahlung_Anlagen'!B22 -> 2016-01-01 | I33: ='280_Geleist_Anzahlung_Anlagen'!B24 -> 2016-01-01 | J33: Klick | K33: 280 | L33: Geleistete Anzahlungen für Anlagen | M33: 1028 | N33: ='280_Geleist_Anzahlung_Anlagen'!B20 -> 0
B34: A.II.5 | C34: 44 | D34: 20 | E34: Metallbearbeitungsmaschinen | F34: =#REF! ->  | H34: ='060_ Im Bau bef GrundstücksEinr'!B22 -> 2016-01-01 | I34: ='060_ Im Bau bef GrundstücksEinr'!B24 -> 2016-01-01 | J34: Klick | K34: 060 | L34: Im Bau befindliche Grundstückseinrichtungen | M34: 1028 | N34: ='060_ Im Bau bef GrundstücksEinr'!B20 -> 0
B35: A.II.5 | C35: 45 | D35: 20 | E35: Industrielle Maschinen | F35: =#REF! ->  | H35: ='060_ Im Bau bef GrundstücksEinr'!B22 -> 2016-01-01 | I35: ='060_ Im Bau bef GrundstücksEinr'!B24 -> 2016-01-01 | J35: Klick | K35: 061 | L35: Im Bau befindliche Gebäude und Bauten | M35: 1028 | N35: ='061_ Im Bau bef Geb_Bauten'!B20 -> 0
B36: A.II.5 | C36: 46 | D36: 20 | E36: Baumaschinen | F36: =#REF! ->  | H36: ='062_ Im Bau bef Anlagen_Fahrz_M'!B22 -> 2016-01-01 | I36: ='062_ Im Bau bef Anlagen_Fahrz_M'!B24 -> 2016-01-01 | J36: Klick | K36: 062 | L36: Im Bau befindliche technische Anlagen/Fahrzeuge/Maschinen | M36: 1028 | N36: ='062_ Im Bau bef Anlagen_Fahrz_M'!B20 -> 0
B37: A.II.5 | C37: 47 | D37: 20 | E37: Landwirtschaftliche Maschinen | F37: =#REF! ->  | H37: ='063_ Im Bau befindl Anlagen'!B22 -> 2016-01-01 | I37: ='063_ Im Bau befindl Anlagen'!B24 -> 2016-01-01 | J37: Klick | K37: 063 | L37: Im Bau befindliche Anlagen (Amts-, Betriebs- und Geschäftsausstattung) | M37: 1028 | N37: ='063_ Im Bau befindl Anlagen'!B20 -> 0
B38: A.II.5 | C38: 48 | D38: 20 | E38: Sonstige Maschinen | F38: ='020_Maschinen und masch Anlagen'!B20 -> 843
B39: A.II.5 | C39: 49 | D39: 20 | E39: Mechanische Ausrüstungen | F39: =#REF! -> 
B40: A.II.5 | C40: 50 | D40: 20 | E40: Lüftungs- u. Kühleinrichtungen | F40: =#REF! -> 
B41: A.II.5 | C41: 51 | D41: 20 | E41: Elektronische Anlagen | F41: =#REF! -> 
B42: A.II.5 | C42: 52 | D42: 20 | E42: Fördergeräte | F42: =#REF! -> 
B43: A.II.5 | C43: 20 | D43: 40 | E43: Kraftfahrzeuge | F43: ='040_Fahrzeuge'!B20 -> 36950
B44: A.II.5 | C44: 21 | D44: 40 | E44: Wasserfahrzeuge | F44: =#REF! -> 
B45: A.II.5 | C45: 22 | D45: 40 | E45: Luftfahrzeuge | F45: =#REF! -> 
B46: A.II.5 | C46: 23 | D46: 40 | E46: Schienenfahrzeuge | F46: =#REF! -> 
B47: A.II.6 | C47: 10 | D47: 42 | E47: Möbel | F47: =#REF! -> 
B48: A.II.6 | C48: 11 | D48: 42 | E48: Sonst. Einrichtungungsgegenst. | F48: =#REF! -> 
B49: A.II.6 | C49: 12 | D49: 42 | E49: Heizungen | F49: =#REF! -> 
B50: A.II.6 | C50: 53 | D50: 30 | E50: Werkzeuge und Geräte | F50: =#REF! -> 
B51: A.II.4 | C51: 54 | D51: 42 | E51: Mess- und Kontrollinstrumente | F51: =#REF! -> 
B52: A.II.4 | C52: 55 | D52: 42 | E52: Medizinische Ausrüstungen | F52: =#REF! -> 
B53: A.II.4 | C53: 56 | D53: 42 | E53: Fotografische Ausrüstungen | F53: =#REF! -> 
B54: A.II.5 | C54: 57 | D54: 42 | E54: Telekommunikation | F54: =#REF! -> 
B55: A.II.6 | C55: 58 | D55: 42 | E55: Küchen- und Haushaltsgeräte | F55: =#REF! -> 
B56: A.II.6 | C56: 59 | D56: 42 | E56: Sonstige Betriebseinrichtungen | F56: =#REF! -> 
B57: A.II.6 | C57: 60 | D57: 42 | E57: Bekleidung | F57: =#REF! -> 
B58: A.II.4 | C58: 61 | D58: 42 | E58: Spezialausrüstungen | F58: =#REF! -> 
B59: A.II.6 | C59: 62 | D59: 42 | E59: Wäsche und Bettzeug | F59: =#REF! -> 
B60: A.II.4 | C60: 70 | D60: 42 | E60: Tierhaltung | F60: =#REF! -> 
B61: A.II.7 | C61: 80 | D61: 46 | E61: Sammlungen | F61: =#REF! -> 
B62: A.II.7 | C62: 89 | D62: 46 | E62: Lehrmittel | F62: =#REF! -> 
B63: A.II.6 | C63: 90 | D63: 15 | E63: Kulturgüter unbeweglich | F63: =#REF! -> 
B64: A.II.8 | C64: 8 | D64: 60 | E64: Anlagen im Bau Grundstücke | F64: ='015-Kulturgüter unbeweglich'!B20 -> 0
B65: A.II.8 | C65: 9 | D65: 60 | E65: Anlagen im Bau Gebäude | F65: ='060_ Im Bau bef GrundstücksEinr'!B20 -> 0
E66: Kontrollsumme | F66: =SUM(F5:F65) -> 

Sheet 070_Aktivierungsfähige Rechte
B1: Zurück
B6: EBK-Konto: | E6: Immaterielle Vermögenswerte
B7: 070 Aktivierungsfähige Rechte | G7: Ungeschützter Zellbereich zur freien Benützung und Gestaltung
J8: Der Steirische Leitfaden:
E9: 1010 | G9: Immaterielle Vermögenswerte | H9: Nutzungsdauer
E10: 1010 | G10: Befristete dingliche Rechte | H10: Vertrag
E11: 1010 | G11: Unbefristete dingliche Rechte | H11: -
E12: 1010 | G12: Lizenzen (ausgenommen Software-Lizenzen)
E13: 1010 | G13: Software (aus Kauf oder Lizenz) | H13: Vertrag/beabsichtigte ND
E16: 1. Beispiel | F16: (= Dienstbarkeit; Beispiel 12: Leitfaden-TIROL, Seite 16)
E18: "Die Gemeinde hat mit einem Bauern einen Dienstbarkeitsvertrag abgeschlossen,
B19: Seitensumme: | E19: wonach die Friedhofsbesucher die Wiese des Bauern zwischen Friedhof
B20: 40200 | E20: und Parkplatz über einen Weg betreten dürfen. Das Wegerecht wurde gegen
B21: Datum der Erfassung | E21: eine Einmalzahlung von € 3.000 über einen Zeitraum von 30 Jahren eingeräumt.
B22: 2018-10-15 | E22: Die Gemeinde hat ein dingliches Recht erworben. Es handelt sich um ein befristetes
B23: Datum der Bewertung: | E23: dingliches Recht, das als immaterieller Vermögenswert über den Zeitraum
B24: 2018-10-15 | E24: der vertraglichen Vereinbarung abzuschreiben ist (Anlage 7 zu VRV 2015)."
B26: Abschreibung ab 2020 | E26: Annahme: | F26: Abschluss des Vertrages im März 2017.
B27: 5100
E28: Lösung:
F29: Anschaffungswert 1. Jahreshälfte 2017 | H29: 3000
F30: Nutzungsdauer | H30: 30
F31: Abschreibung für 2017, 2018 und 2019 | H31: =H29/H30*3 -> 300 | I31: =H29/H30*3
F32: Fortgeschriebener Anschaffungswert per 01.01.2020 | H32: =H29-H31 -> 2700 | I32: =H29-H31 | K32: =H32 -> 2700 | L32: =h32
F34: Abschreibung ab dem Haushaltsjahr 2020 pro Jahr | H34: =H29/H30 -> 100 | I34: =h29/h30
E37: 2. Beispiel | F37: (=Ankauf neuer Software)
E39: Die Gemeinde kauft in der 2. Jahreshälfte 2019 eine neue multifunktionale Software zu einem Preis von 40.000 € inklusive Umsatzsteuer.
E40: Die beabsichtigte Nutzungsdauer beträgt laut Beschluss des Gemeinderates 8 Jahre.
E42: Lösung:
F43: Anschaffungswert 2. Jahreshälfte 2019 | H43: 40000
F44: Nutzungsdauer in Jahren | H44: 8
F45: Abschreibung im Jahr 2019 | H45: =H43/H44*0.5 -> 2500 | I45: =h43/h44*0,5
F46: Fortgeschriebener Anschaffungswert per 01.01.2020 | H46: =H43-H45 -> 37500 | I46: =h43-h45 | K46: =H46 -> 37500 | L46: =h46
F49: Abschreibung ab dem Haushaltsjahr 2020 pro Jahr | H49: =H43/H44 -> 5000 | I49: =h43/h44
G51: Abschreibung ab 2020 pro Jahr | H51: =H34+H49 -> 5100 | I51: Seitensumme | K51: =K32+K46 -> 40200 | L51: =k32+k46

Sheet 000_Bebaute Grundstücke
G2: Bebaute Grundstücke
B3: 01-EBK-SACHANLAGEN'!I11 | E3: Ungeschützter Zellbereich:
J4: Der Steirische Leitfaden:
E17: Beispiele:
D18: 1. | E18: Gemeindeamt und Vorplatz (Grundstückrasterverfahren)
B19: Seitensumme:
B20: 1944477.75 | H20: Berechnung: | I20: Länge: | J20: Breite: | K20: m²: | L20: Preis: | M20: Anschaffungs-wert
B21: Datum der Erfassung: | H21: Gesamtfläche: | I21: 60 | J21: 60 | K21: =I21*J21 -> 3600
B22: 2018-10-22 | H22: Gemeindeamt: | I22: 30 | J22: 20 | K22: =I22*J22 -> 600 | L22: 80.19 | M22: =K22*L22 -> 48114
B23: Datum der Bewertung: | H23: Vorplatz und Grünstreifen | K23: =K21-K22 -> 3000 | L23: 80.19 | M23: =K23*L23 -> 240570 | N23: =M23+M22 -> 288684
B24: 2018-10-22
D27: 2. | E27: Feuerwehrhaus und Vorplatz (Grundstückrasterverfahren)
H29: Berechnung: | I29: Länge: | J29: Breite: | K29: m²: | L29: Preis: | M29: Anschaffungs-wert
H30: Gesamtfläche: | I30: 75 | J30: 35 | K30: =I30*J30 -> 2625
H31: Feuerwehrhaus | I31: 45 | J31: 20 | K31: =I31*J31 -> 900 | L31: 80.19 | M31: =K31*L31 -> 72171
H32: Vorplatz | K32: =K30-K31 -> 1725 | L32: 80.19 | M32: =K32*L32 -> 138327.75 | N32: =M32+M31 -> 210498.75
B33: EBK-Konto:
B34: 000 Bebaute Grundstücke
E42: Beispiel:
E43: Altstoffsammelzentrum (plus Fläche)
H46: Berechnung: | I46: Länge: | J46: Breite: | K46: m²: | L46: Preis: | M46: Anschaffungs-wert
H47: Gesamtfläche: | I47: 60 | J47: 50 | K47: =I47*J47 -> 3000
H48: Verwaltung | I48: 15 | J48: 15 | K48: =I48*J48 -> 225 | L48: 80.19 | M48: =K48*L48 -> 18042.75
H49: Lagerraum | I49: 60 | J49: 15 | K49: =I49*J49 -> 900 | L49: 80.19 | M49: =K49*L49 -> 72171
H50: Manipulation | I50: Rest | K50: =K47-K48-K49 -> 1875 | L50: 81.19 | M50: =K50*L50 -> 152231.25 | N50: =SUM(M48:M50) -> 242445
E72: Beispiel:
E73: Freibad
H75: Berechnung: | I75: Länge: | J75: Breite: | K75: m²: | L75: Preis: | M75: Anschaffungs-wert
H76: Gesamtfläche: | I76: 150 | J76: 100 | K76: =I76*J76 -> 15000 | L76: 80.19 | M76: =K76*L76 -> 1202850 | N76: =M76 -> 1202850
M88: Seitensumme | N88: =N76+N50+N32+N23 -> 1944477.75

Sheet 001_Unbebaute Grundstücke
C1: Unbebaute Grundstücke
F2: Ungeschützter Zellbereich
B3: 01-EBK-SACHANLAGEN'!I12
I4: Der Steirische Leitfaden:
B12: EBK-Konto:
B13: 001 Unbebaute Grundstücke | E13: Beispiel: | H13: Fläche | I13: Preis
D14: 1. | E14: Grundstück A , EZ …. | G14: Widmung "Bauland", Größe: 500 ar | H14: =(500*100) -> 50000 | I14: 80.19 | J14: =H14*I14 -> 4009500 | K14: =J14 -> 4009500
B21: Seitensumme:
B22: 4865370
B23: Datum der Erfassung:
B24: 2018-10-22
B25: Datum der Bewertung:
B26: 2018-10-22
E29: Beispiel: | F29: Die Gemeinde verfügt über folgende Flächen: | I29: Basispreis | J29: 6.07
F30: 1.1 | G30: Landwirtschaftliche Grundstücke | H30: Fläche | I30: in % vom Basispreis
F31: a) | G31: Acker, 120 ar | H31: =120*100 -> 12000 | I31: 1 | J31: =H31*I31*$J$29 -> 72840
F32: b) | G32: Wiese, 2 ha | H32: =2*10000 -> 20000 | I32: 1 | J32: 121400
F33: c) | G33: Weingarten, 1 ha | H33: =1*10000 -> 10000 | I33: 2 | J33: 121400
F34: d) | G34: Gewässer, 220 ar | H34: =220*100 -> 22000 | I34: 0.5 | J34: 66770
F35: e) | G35: Ödland, 3 ha | H35: =3*10000 -> 30000 | I35: 0.1 | J35: 18210
F36: 1.2 | G36: Wald, 15 ha | H36: =15*10000 -> 150000 | I36: 0.5 | J36: 455250
J37: =SUM(J31:J36) -> 855870 | K37: =J37 -> 855870
J39: Seitensumme | K39: =K14+K37 -> 4865370

Sheet 002_Straßenbauten
B1: Zurück
C2: Hinweis: Hier sind die Aufbauten dieser Straßen darzustellen!
F3: Ungeschützter Zellbereich:
K7: Der Steirische Leitfaden:
B8: EBK-Konto:
B9: 002 Straßenbauten
E15: Aus dem Leitfaden-TIROL (Seite 22 f)
B16: Seitensumme: | E16: 6.4. Straße - Aufbau
B17: 4577224
B18: Datum der Erfassung: | E18: Beim Straßenaufbau ist nach den erläuternden Bemerkungen zur VRV 2015 eine
B19: 2018-10-22 | E19: getrennte Bewertung nach Decke, Tragschicht und Unterbau nicht notwendig. Es
B20: Datum der Bewertung: | E20: wird ausschließlich zwischen unbefestigten und befestigten Anlagen unterschieden.
B21: 2018-10-22 | E21: Als unbefestigt werden einfache und locker angefertigte Wege (z.B. Schotterfeldwege)
E22: eingestuft, als befestigt gelten hingegen Anlagen mit einem mittleren
B23: Abschreibung ab 2020 | E23: Straßenaufbau (z.B. einfache Asphaltdecke, Pflasterstraße). Laut der Abteilung Verkehr
B24: 227008.49 | E24: und Straße des Landes Tirol kann man bei Gemeindestraßen durchschnittliche
E25: Neubaukosten von netto € 50,-- bis € 60,-- ansetzen[pro m²]. Bei unbefestigten Anlagen
E26: kann man durchschnittliche Neubaukosten von netto € 25,-- bis € 30,-- [pro m²]ansetzen.
E29: Laut der Excel-Exportdatei des Programmes GISquadrat ergeben
E30: sich für die Gemeinde folgende Flächen: | I30: Nutzungsdauer insgesamt in Jahren | L30: 33
I31: bisher genutzt in Jahren
I32: 2 | J32: 8 | K32: 16 | L32: 26
I33: 0.1 | J33: 0.3 | K33: 0.4 | L33: 0.2
F34: Straßen befestigt | H34: 180000 | I34: =$H$34*I33 -> 18000 | J34: =$H$34*J33 -> 54000 | K34: =$H$34*K33 -> 72000 | L34: =$H$34*L33 -> 36000
F35: Neubauaufwand pro m² | G35: 55 | H35: =H34*$G$78 -> 0 | I35: =I34*$G$35 -> 990000 | J35: =J34*$G$35 -> 2970000 | K35: 3960000 | L35: 1980000
H36: Restnutzungsdauer | I36: =$L$30-I32 -> 31 | J36: =$L$30-J32 -> 25 | K36: =$L$30-K32 -> 17 | L36: =$L$30-L32 -> 7
H37: Herstellungsjahr | I37: 2017 | J37: 2012 | K37: 2003 | L37: 1993
G38: Hochbaupreisindex im Jahr 2017 | I38: 153.1 | J38: 153.1 | K38: 153.1 | L38: 153.1
G39: Hochbaupreisindex im Herstellungsjahr | I39: 153.1 | J39: 136.8 | K39: 104.7 | L39: 88.1
G40: Wert im Herstellungsjahr | I40: =I35*I39/L38 -> 990000 | J40: =J35*J39/J38 -> 2653794.905 | K40: =K35*K39/K38 -> 2708112.345 | L40: =L35*L39/L38 -> 1139372.959
G41: Abschreibung vom Herstellungsjahr bis 31.12.2019 | I41: =I40/$L$30*I32 -> 60000 | J41: =J40/$L$30*J32 -> 643344.2195 | K41: =K40/$L$30*K32 -> 1313024.167 | L41: =L40/$L$30*L32 -> 897687.7858
G42: Buchwert per 31.12.2019 (=AB per 01.01.2020) | I42: =I40-I41 -> 930000 | J42: =J40-J41 -> 2010450.686 | K42: 1395088.178 | L42: 241685.1731 | M42: =SUM(I42:L42) -> 4577224.037
G44: Abschreibung ab 2020 | I44: =I42/I36 -> 30000 | J44: =J42/J36 -> 80418.02743 | K44: =K42/K36 -> 82064.01045 | L44: =L42/L36 -> 34526.4533 | N44: =SUM(I44:L44) -> 227008.4912
I120: davon
I121: neuwertig | J121: gut | K121: mittel | L121: schlecht
I122: 0 | J122: 0 | K122: 0 | L122: 1
E123: 2. | F123: Straßen unbefestigt | H123: 32800 | I123: =$H$123*I122 -> 0 | J123: =$H$123*J122 -> 0 | K123: =$H$123*K122 -> 0 | L123: =$H$123*L122 -> 32800
F124: Neubauaufwand pro m² | G124: 30 | H124: =H123*$G$124 -> 984000 | I124: =I123*$G$124 -> 0 | J124: =J123*$G$124 -> 0 | K124: =K123*$G$124 -> 0 | L124: =L123*$G$124 -> 984000
F125: Abschlag in % | I125: 0 | J125: 0.25 | K125: 0.5 | L125: 0.8
F126: Wert des Straßenaufbaus aktuell | I126: =I124*(1-I125) -> 0 | J126: =J124*(1-J125) -> 0 | K126: =K124*(1-K125) -> 0 | L126: =L124*(1-L125) -> 196800 | M126: =SUM(I126:L126) -> 196800
F127: Nutzungsdauer | G127: 10 | H127: Restnutzungsdauer | I127: =$G$127*(1-I125) -> 10 | J127: =$G$127*(1-J125) -> 7.5 | K127: =$G$127*(1-K125) -> 5 | L127: =$G$127*(1-L125) -> 2
F128: Jährliche Abschreibung | I128: =I126/I127 -> 0 | J128: =J126/J127 -> 0 | K128: =K126/K127 -> 0 | L128: =L126/L127 -> 98400 | M128: =SUM(I128:L128) -> 98400

Sheet 003_Grundstücke z Straßenbauten
B1: Zurück
C2: 1 | D2: Bebaute Grundstücke: GRUNDSTÜCKE ZU STRAßENBAUTEN
E5: Ungeschützter Zellbereich: | J5: Der Steirische Leitfaden:
E7: 1021 | G7: Grundstücke zu Straßenbauten
E8: 1021 | G8: Grundstück_Gemeindestraße 1 | H8: 0
B9: EBK-Konto: | E9: 1021 | G9: Grundstück_Gemeindestraße 2 | H9: 0
B10: 003 Grundstücke zu Straßenbauten | E10: 1021 | G10: Grundstück_Gemeindestraße 3 | H10: 0
E11: 1021 | G11: Grundstück_Gemeindestraße 4 | H11: 0
E12: 1021 | G12: Grundstück_Gemeindestraße 5 | H12: 0
E13: 1021 | G13: Grundstück_Gemeindestraße 6 | H13: 0
E14: 1021 | G14: Grundstück_Gemeindestraße 7 | H14: 0
E15: 1021 | G15: Grundstück_Gemeindestraße 8 | H15: 0
E16: 1021 | G16: Grundstück_Gemeindestraße 9 | H16: 0
E17: 1021 | G17: Grundstück_Gemeindestraße 10 | H17: 0
E18: 1021 | G18: Grundstück_Gemeindestraße 11 | H18: 0
B19: Seitensumme: | E19: 1021 | G19: Grundstück_Gemeindestraße 12 | H19: 0
B20: =J73 -> 218520 | E20: 1021 | G20: Grundstück_Gemeindestraße 13 | H20: 0
B21: Datum der Erfassung: | E21: 1021 | G21: Grundstück_Gemeindestraße 14 | H21: 0
B22: 2018-10-15 | E22: 1021 | G22: Grundstück_Gemeindestraße n | H22: 0
B23: Datum der Bewertung:
B24: 2018-10-15
E26: Leitfaden-TIROL (Seite 21 f)
E28: 6.3. Definition Straße
E29: Gemäß § 2 Abs. (1) des Tiroler Straßengesetzes ist eine Straße eine bauliche Anlage,
E30: die dazu bestimmt ist, dem Verkehr von Fußgängern, von Fahrzeugen einschließlich
E31: Kraftfahrzeugen und von Tieren zu dienen. Eine weitere Unterteilung
E32: einer Straße in ihre Bestandteile kann für Zwecke der Erstbewertung im Sinne
E33: der Verwaltungsökonomie entfallen. Es reicht die Breite bzw. die Länge der befestigten
E34: oder unbefestigten Straße. Grundsätzlich gehören zur Straße:
E35: • Die einzelnen Schichten des Straßenkörpers
E36: • Radwege, Gehwege, kombinierte Rad- und Gehwege
E37: • Verkehrsinseln
E38: • Geschwindigkeitsbremsen
E39: • Fahrbahnmarkierungen
E40: • Fußgängerquerungshilfen
E41: • Pflanzenbeete in der Fahrbahn
E42: • Gräben
E43: • Böschungen
E44: • Bankette
E45: • Straßenabläufe, Straßenentwässerungsanlagen
E46: • Grünstreifen
E47: • Schutzplanken
E48: • Betonschutzwände
E50: Selbständig zu erfassen und einzeln zu bewerten sind:
E51: • Kreisverkehrsanlagen | I51: Nach Ansicht des Autors sind diese Positionen
E52: • Bushaltestellen | I52: in 005_Anlagen zu Straßenbauten zu erfassen!
E53: • Unterstände Bushaltestellen
E54: • Parkplätze jeder Art
E55: • Taxistände
E56: • Verkehrsampeln, Signalanlagen
E57: • Parkleitsysteme
E58: • Straßenbeleuchtung
E60: Leitfaden-TIROL (Seite 21 oben)
E61: Es wird empfohlen, das Straßengrundstück
E62: bei Anwendung des Grundstücksrasterverfahrens mit 20 % des Basispreises für
E63: landwirtschaftliche Nutzflächen gemäß Anlage B zu bewerten. Würde man es unter
E64: „sonstige Benützungsarten“ subsumieren, müsste man 20 % des Basispreises
E65: für Bauflächen heranziehen, was zu einer massiven Wertverzerrung führen würde.
E67: Beispiel:
E68: Laut der Excel-Exportdatei des Programmes GISquadrat ergeben
E69: sich für die Gemeinde folgende Flächen:
I70: Preis (20 % des l+f Basispreises) | J70: Gesamtwert der Straßengrundstücke
E71: 1. | F71: Straßen befestigt | H71: 180000
E72: 2. | F72: Straßen unbefestigt | H72: 0
F73: Summe | H73: =SUM(H71:H72) -> 180000 | I73: =H79*0.2 -> 1.214 | J73: =H73*I73 -> 218520
F75: Der Preis pro m²:
G76: Ich nehme für dieses Beispiel
G77: den Durchschnittspreis (Mitttelwert) der landwirtschaftlichen Grundstücke für
G78: alle österreichischen Gemeinden:
G79: Er beträgt pro m² | H79: 6.07
G81: Du gibst natürlich jenen Preis ein, der für Deine Gemeinde gilt!

Sheet 004_Wasser_Abwasserbauten_Anlag
B1: Zurück
F2: Wasserbauten, Abwasserbauten und -Anlagen
E4: Ungeschützter Zellbereich:
L6: Link zum Steirischen Leitfaden:
L8: Der Steirische Leitfaden hat Vorrang!
B9: EBK-Konto:
B10: 004 Wasser-und Abwasserbauten und -Anlagen
E14: Beispiel:
D15: 1. | E15: Wasserbauten
E17: Die Wasserleitung für die Gemeinde besteht aus folgenden Systemen:
M18: Davon errichtet | Q18: GND (Gesamtnutzungsdauer)
B19: Seitensumme: | M19: 2010-2019 | N19: 2000-2009 | O19: 1980-1999 | P19: 1960-1979 | Q19: 33
B20: =R47 -> 1850095.815 | E20: Dimension in mm | F20: Hydraulische Funktion | G20: Material | H20: Profil | I20: Mittlere Sohltiefe | J20: Oberfläche | K20: Preis/je Laufm | L20: Gesamt-länge in m | M20: 0.1 | N20: 0.4 | O20: 0.25 | P20: 0.25
B21: Datum der Erfassung: | D21: a | E21: 150 | F21: Pumpleitung | G21: PE 100 | H21: Kreis | I21: 2,11 m | J21: Gemeindestraße | K21: 338 | L21: 6000 | M21: =M20*$L$21 -> 600 | N21: =N20*$L$21 -> 2400 | O21: 1500 | P21: 1500
B22: 2018-10-23 | K22: Referenzpreis 2016 | M22: =M21*$K$21 -> 202800 | N22: =N21*$K$21 -> 811200 | O22: =O21*$K$21 -> 507000 | P22: =P21*$K$21 -> 507000
B23: Datum der Bewertung: | K23: Mittleres Herstellungsjahr | M23: 2016 | N23: 2005 | O23: 1990 | P23: 1970
B24: 2018-10-23 | K24: Baupreisindex 2016 | M24: 149 | N24: 149 | O24: 149 | P24: 149
K25: Baupreisindex im Herstellungsjahr | M25: 149 | N25: 110.9 | O25: 77.8 | P25: 49.2
B26: Abschreibung ab 2020 | K26: Fiktiver Anschaffungswert 2016 | M26: =M22*M25/M24 -> 202800 | N26: =N22*N25/N24 -> 603772.349 | O26: =O22*O25/O24 -> 264728.8591 | P26: =P22*P25/P24 -> 167412.0805 | Q26: =SUM(M26:P26) -> 1238713.289
B27: =R50 -> 95911.25483 | K27: Nutzungsdauer bis 31.12.2019 | M27: 4 | N27: 15 | O27: 30 | P27: 33
K28: Abschreibung bis 31.12.2019 | M28: =M26*M27/$Q$19 -> 24581.81818 | N28: =N26*N27/$Q$19 -> 274441.9768 | O28: 240662.5991 | P28: 167412.0805 | Q28: =SUM(M28:P28) -> 707098.4747
K29: Buchwert 31.12.2019 | M29: =M26-M28 -> 178218.1818 | N29: =N26-N28 -> 329330.3722 | O29: =O26-O28 -> 24066.25991 | P29: =P26-P28 -> 0 | Q29: =SUM(M29:P29) -> 531614.8139 | R29: =Q29 -> 531614.8139
K31: Restnutzungsdauer | M31: =$Q$19-M27 -> 29 | N31: =$Q$19-N27 -> 18 | O31: 3 | P31: 0
K32: Abschreibung ab 2020 | M32: =M29/M31 -> 6145.454545 | N32: =N29/N31 -> 18296.13179 | O32: =O29/O31 -> 8022.086638 | P32: 0 | Q32: =SUM(M32:P32) -> 32463.67297 | R32: =Q32 -> 32463.67297
M35: Davon errichtet | Q35: GND (Gesamtnutzungsdauer)
M36: 2010-2019 | N36: 2000-2009 | O36: 1980-1999 | P36: 1960-1979 | Q36: 33
E37: Dimension in mm | F37: Hydraulische Funktion | G37: Material | H37: Profil | I37: Mittlere Sohltiefe | J37: Oberfläche | K37: Preis/je Laufm | L37: Gesamt-länge in m | M37: 0.3 | N37: 0.4 | O37: 0.2 | P37: 0.1 | Q37: =SUM(M37:P37) -> 1
D38: b | E38: 150 | F38: Freispiegel-kanal | G38: PP | H38: Kreis | I38: 2,11 m | J38: Gemeindestraße | K38: 368 | L38: 8500 | M38: =M37*$L$38 -> 2550 | N38: =N37*$L$38 -> 3400 | O38: 1700 | P38: 850 | Q38: =SUM(M38:P38) -> 8500
K39: Referenzpreis 2016 | M39: =M38*$K$38 -> 938400 | N39: =N38*$K$21 -> 1149200 | O39: =O38*$K$21 -> 574600 | P39: =P38*$K$21 -> 287300
K40: Mittleres Herstellungsjahr | M40: 2016 | N40: 2005 | O40: 1990 | P40: 1970
K41: Baupreisindex 2016 | M41: 149 | N41: 149 | O41: 149 | P41: 149
K42: Baupreisindex im Herstellungsjahr | M42: 149 | N42: 110.9 | O42: 77.8 | P42: 49.2
K43: Fiktiver Anschaffungswert 2016 | M43: =M39*M42/M41 -> 938400 | N43: =N39*N42/N41 -> 855344.1611 | O43: =O39*O42/O41 -> 300026.0403 | P43: =P39*P42/P41 -> 94866.84564 | Q43: =SUM(M43:P43) -> 2188637.047
K44: Nutzungsdauer bis 31.12.2019 | M44: 4 | N44: 15 | O44: 30 | P44: 33
K45: Abschreibung bis 31.12.2019 | M45: =M43*M44/$Q$19 -> 113745.4545 | N45: =N43*N44/$Q$19 -> 388792.8005 | O45: =O43*O44/$Q$19 -> 272750.9457 | P45: =P43*P44/$Q$19 -> 94866.84564 | Q45: =SUM(M45:P45) -> 870156.0464
K46: Buchwert 31.12.2019 | M46: =M43-M45 -> 824654.5455 | N46: =N43-N45 -> 466551.3606 | O46: =O43-O45 -> 27275.09457 | P46: =P43-P45 -> 0 | Q46: =SUM(M46:P46) -> 1318481.001 | R46: =Q46 -> 1318481.001
R47: =R29+R46 -> 1850095.815
K48: Restnutzungsdauer | M48: =$Q$19-M44 -> 29 | N48: =$Q$19-N44 -> 18 | O48: 3 | P48: 0
K49: Abschreibung ab 2020 | M49: =M46/M48 -> 28436.36364 | N49: =N46/N48 -> 25919.52003 | O49: =O46/O48 -> 9091.69819 | P49: 0 | Q49: =SUM(M49:P49) -> 63447.58186 | R49: =Q49 -> 63447.58186
R50: =R32+R49 -> 95911.25483
F62: Der Steirische Leitfaden:

Sheet 005_Anlagen zu Straßenbauten
B1: Zurück
E2: Anlagen zu Straßenbauten
F4: Ungeschützter Zellbereich:
I5: Vorschlag Autor:
E6: Beispiele: | N6: Link zum Steirischen Leitfaden:
D7: 1. | E7: Straßenbeleuchtung (Lichtpunkte) | N7: Der Steirische Leitfaden hat Vorrang!
B8: EBK-Konto:
B9: 005 Anlagen zu Straßenbauten
B18: Seitensumme: | E18: Lösung mit der Anwendung Referenzwertermittlung | M18: Vorschlag Leitfaden_TIROL:
B19: 5781 | E19: des Autors:
B20: Datum der Erfassung: | E20: Anzahl der Lichtpunkte aus den Jahren
B21: 2018-10-24 | E21: Jahr | F21: 2015 | G21: 2002 | H21: 1990 | I21: Summe
B22: Datum der Bewertung: | E22: Anzahl | F22: 5 | G22: 20 | H22: 5 | I22: =SUM(F22:H22) -> 30
B23: 2018-10-24 | E23: Buchwert per 31.12.2019 | F23: 4200 | G23: 1581 | H23: 0 | I23: =SUM(F23:H23) -> 5781 | J23: =I23 -> 5781
B25: Abschreibung ab 2020 | E25: Abschreibung ab 2020 | F25: 280 | G25: 791 | H25: 0 | I25: =SUM(F25:H25) -> 1071 | J25: =I25 -> 1071
B26: =J25 -> 1071
E60: Der Steirische Leitfaden:

Sheet 006_Sonst-Grundstückseinricht
E1: Sonstige Grundstückseinrichtungen
E2: Ungeschützter Zellbereich:
E4: Beispiel: | G4: Freibad | J4: Link zum Steirischen Leitfaden:
B5: 01-EBK-SACHANLAGEN'!A1 | K5: Der Steirische Leitfaden hat Vorrang!
B9: EBK-Konto:
B10: 006 Sonstige Grundstücks-einrichtungen
E18: Hier wird all das erfasst, was sich in dieser Anlage befindet!
B19: Seitensumme: | E19: Zum Beispiel:
B20: 383333.33 | E20: - die beiden Becken
B21: Datum der Erfassung: | E21: - die Rutschen
B22: 2018-10-23 | E22: - die Bänke
B23: Datum der Bewertung: | E23: - Sprungbrett
B24: 2018-10-23 | E24: - Fahnenmast
E25: - die Liegen
B26: Abschreibung ab 2020
B27: =N32 -> 11596.16162
G29: Anlagengut | H29: Anschaffungs-wert | I29: Anschaffungs-jahr | J29: Nutzungs-dauer | K29: Bisherige ND | L29: Abschreibung bisher | M29: Buchwert 31.12.2019 | N29: Afa ab 2020
G30: Erwachsenenbecken | H30: 400000 | I30: 2010 | J30: 33 | K30: 10 | L30: =H30*K30/J30 -> 121212.1212 | M30: =H30-L30 -> 278787.8788 | N30: =M30/J30-K30 -> 8438.117539
G31: Kinderbecken | H31: 150000 | I31: 2010 | J31: 33 | K31: 10 | L31: =H31*K31/J31 -> 45454.54545 | M31: =H31-L31 -> 104545.4545 | N31: =M31/J31-K31 -> 3158.044077
N32: =SUM(N30:N31) -> 11596.16162
G33: Summe Buchwert | M33: =SUM(M30:M31) -> 383333.3333
M35: =M33 -> 383333.3333
E37: Der Steirische Leitfaden

Sheet 010_Gebäude und Bauten
B1: Zurück
E2: Gebäude und Bauten
E4: Ungeschützter Zellbereich:
K5: Link zum Steirischen Leitfaden
E6: Beispiel: | K6: Der Steirische Leitfaden hat Vorrang!
D7: 1. | E7: Gemeindeamt und Vorplatz
B11: EBK-Konto:
B12: 010 Gebäude und Bauten
B19: Seitensumme:
B20: 621880
B21: Datum der Erfassung:
B22: 2018-10-24
B23: Datum der Bewertung:
B24: 2018-10-24
B26: Abschreibung ab 2020
B27: 16683
E30: 1. Gemeindeamt
G31: Anschaffungswert | H31: Nutzungs-dauer | I31: Anschaffungs-jahr | J31: Nutzung bis 31.12.2019 | K31: Abschreibung bis 31.12.2019 | L31: Anschaffungswert per 01.01.2020
G32: 750000 | H32: 50 | I32: 2010 | J32: 10 | K32: =G32/H32*J32 -> 150000 | L32: =G32-K32 -> 600000 | M32: =L32 -> 600000
K34: Restnutzungs-dauer | L34: =H32-J32 -> 40
K35: Abschreibung ab 2020 | L35: =L32/L34 -> 15000 | N35: =L35 -> 15000
E37: Mit der Anwendung "Anschaffungswertverfahren" des Autors ist diese Aufgabe
E38: in 3 Schritten innerhalb von 30 Sekunden erledigt!
E69: 2. Vorplatz
E71: Der Vorplatz wurde bereits im Jahr 2000 geschaffen und nicht verändert.
E72: Anschaffungswert nicht mehr nachvollziehbar!
E73: Daher Referenzwertverfahren!
E74: Der Referenzwert aus dem Jahr 2017 beträgt € 40,50 pro m² (verlegt)
E76: Ermittlung der Fläche laut obiger Skizze:
G77: Breite | H77: Länge | I77: Gesamt
G78: 45 | H78: 60 | I78: =G78*H78 -> 2700
E79: - Gemeindeamt | G79: 20 | H79: 30 | I79: =G79*H79 -> 600
G80: Fläche des Vorplatzes | I80: =I78-I79 -> 2100
G81: Preis pro m² | I81: 40.5
G82: Referenzwert gesamt | I82: =I80*I81 -> 85050
E84: Lösung anhand der Anwendung | H84: "Ersatzwertverfahren(Referenzwertverfahren)_Schweiger":
H86: Lösung: | I86: Buchwert 31.12.2019 | K86: 21880 | M86: =K86 -> 21880
I88: Abschreibung ab 2020 | K88: 1683 | N88: =K88 -> 1683
L90: Seitensumme | M90: =M32+M86 -> 621880 | N90: =N35+N88 -> 16683
E94: Der Steirische Leitfaden:

Sheet 015-Kulturgüter unbeweglich
B2: 01-EBK-SACHANLAGEN'!A1 | E2: 1027 | G2: Kulturgüter unbeweglich
F4: Ungeschützter Zellbereich:
E6: Aus dem Steirischen Leitfaden: | H6: Der Steirische Leitfaden hat Vorrang!
B9: EBK-Konto:
B10: 015 Kulturgüter unbeweglich
B19: Seitensumme:
B20: 0
B21: Datum der Erfassung::
B22: 2016-01-01
B23: Datum der Bewertung:
B24: 2016-01-01

Sheet 020_Maschinen und masch Anlagen
B2: Zurück | D2: Maschinen und maschinelle Anlagen
D3: Ungeschützter Zellbereich:
D5: Beispiel: | J5: Link zum Steirischen Leitfaden
J6: Der Steirische Leitfaden hat Vorrang!
M8: Der Vorschlag des Autors:
B12: EBK-Konto:
B13: 020 Maschinen und maschinelle Anlagen
E14: Lösung mit Referenzwertverfahren_Schweiger! | J14: Suchbegriff: "Transformatoren"
F16: Buchwert 31.12.2019 (=AW per 01.01.2020): | J16: 843 | K16: =J16 -> 843
F18: Abschreibung ab 2020 | J18: 94 | K18: =J18 -> 94
B19: Seitensumme:
B20: 843
B21: Datum der Erfassung:
B22: 2018-10-24
B23: Datum der Bewertung:
B24: 2018-10-24
B26: Abschreibung ab 2020
B27: 94
E28: Der Steirische Leitfaden:

Sheet 030_Werkzeuge und sonst. Erzeug
B1: Zurück
D2: Werkzeuge und sonstige Erzeugungsmittel
F4: Ungeschützter Zellbereich:
D6: Hochgrasmäher | J6: Der Steirische Leitfaden:
J7: Der Steirische Leitfaden hat Vorrang!
B12: EBK-Konto
B13: 030 Werkzeuge und sonstige Erzeugungsmittel | D13: Ermittlung mit Anschaffungswertverfahren_Schweiger!
D14: Lösung:
D15: Buchwert 31.12.2019 (=AW per 01.01.2020): | H15: 1741 | I15: =H15 -> 1741
D17: Abschreibung ab 2020 | H17: 219 | I17: 249
B19: Seitensumme:
B20: 1741
B21: Datum der Erfassung:
B22: 2018-10-26
B23: Datum der Bewertung:
B24: 2018-10-26
B26: Abschreibung ab 2020
B27: 249

Sheet 040_Fahrzeuge
B1: Zurück
D2: 040 Fahrzeuge
H4: Ungeschützter Zellbereich:
E5: Beispiele
D6: 1. | E6: Klein-Lkw | I6: Link zum Steirischen Leitfaden:
I8: Der Steirische Leitfaden hat Vorrang!
B10: EBK-Konto:
B11: 040 Fahrzeuge
E16: Ermittlung mit Anschaffungswertverfahren_Schweiger!
E17: Lösung:
E18: Buchwert 31.12.2019 (=AW per 01.01.2020): | I18: 8750 | J18: =I18 -> 8750
B19: Seitensumme:
B20: 36950 | E20: Abschreibung ab 2020 | I20: 3500 | J20: =I20 -> 3500
B21: Datum der Erfassung:
B22: 2018-10-25 | D22: 2. | E22: Klein-Bus für Kindertransport
B23: Datum der Bewertung:
B24: 2018-10-25
B26: Abschreibung ab 2020
B27: 8200
E32: Ermittlung mit Anschaffungswertverfahren_Schweiger!
E33: Lösung:
E34: Buchwert 31.12.2019 (=AW per 01.01.2020): | I34: 28200 | J34: =I34 -> 28200
E36: Abschreibung ab 2020 | I36: 4700 | J36: =I36 -> 4700
D38: 2. | E38: Traktor
E46: Lösung:
E47: Die Nutzungsdauer für einen Traktor beträgt 10 Jahre!
E48: Somit ist der Traktor komplett abgeschrieben und es
E49: fällt keine neue Abschreibung an!
E51: Lösung:
E52: Buchwert 31.12.2019 (=AW per 01.01.2020): | I52: 0 | J52: =I52 -> 0
E54: Abschreibung ab 2020 | I54: 0 | J54: =I54 -> 0
G56: Seitensumme Buchwert | J56: =J52+J34+J18 -> 36950
G58: Seitensumme AfA ab 2020 | J58: =J54+J36+J20 -> 8200
E61: Der Steirische Leitfaden:

Sheet 042_Amts-Betriebs-Geschäftsauss
B1: Zurück
D2: Amts-, Betriebs- und Geschäftsausstattung
F4: Ungeschützter Zellbereich:
D5: Beispiele:
H6: Link zum Steirischen Leitfaden:
D7: 1. | E7: Stühle für den Sitzungssaal
H8: Der Steirische Leitfaden hat Vorrang!
B10: EBK-Konto
B11: 042 Amts-Betriebs-und Geschäftsausstattung
E15: Ermittlung mit Anschaffungswertverfahren_Schweiger!
E16: Lösung:
E17: Buchwert 31.12.2019 (=AW per 01.01.2020): | H17: 2880 | I17: =H17 -> 2880
B19: Seitensumme: | E19: Abschreibung ab 2020 | H19: 480 | I19: =H19 -> 480
B20: 4362
B21: Datum der Erfassung: | D21: 2. | E21: Anschaffung einer neuen Boden-Waage für den Bauhof
B22: 2018-10-26
B23: Datum der Bewertung:
B24: 2018-10-26
B26: Abschreibung ab 2020
B27: 737
E30: Ermittlung mit Anschaffungswertverfahren_Schweiger!
E31: Lösung:
E32: Buchwert 31.12.2019 (=AW per 01.01.2020): | H32: 1188 | I32: =H32 -> 1188
E34: Abschreibung ab 2020 | H34: 198 | I34: =H34 -> 198
D36: 3. | E36: Panzerschrank für Veranstaltungszentrum
E48: Ermittlung mit Referenzwertverfahren_Schweiger!
E49: Lösung:
E50: Buchwert 31.12.2019 (=AW per 01.01.2020): | H50: 294 | I50: =H50 -> 294
E52: Abschreibung ab 2020 | H52: 59 | I52: =H52 -> 59
G54: Seitensumme Buchwert | J54: =I50+I32+I17 -> 4362
G56: Seitensumme Abschreibung | J56: =I52+I34+I19 -> 737
E59: Der Steirische Leitfaden:

Sheet 046_Kulturgüter beweglich
B1: Zurück
D2: Kulturgüter beweglich
F4: Ungeschützter Zellbereich:
D5: 1027 Kulturgüter beweglich
H6: Steirischer Leitfaden | K6: Der Steirische Leitfaden hat Vorrang!
H7: Link zum Steirischen Leitfaden
B8: EBK-Konto | D8: Beispiel:
B9: 046 Kulturgüter beweglich
B19: Seitensumme:
B20: 6781
B21: Datum der Erfassung:
B22: 2019-01-23
B23: Datum der Bewertung:
B24: 2019-01-23

Sheet 050_Sonderanlagen
B1: Zurück
D2: Sonderanlagen
F4: Ungeschützter Zellbereich:
B6: EBK-Konto | D6: 1. | E6: Altstoffsammelzentrum (plus Fläche) | I6: Link zum Steirischen Leitfaden
B7: 050 Sonderanlagen
I8: Der Steirische Leitfaden hat Vorrang!
B19: Seitensumme: | E19: Berechnung: | F19: Länge: | G19: Breite: | H19: m²:
B20: =J52 -> 239146 | E20: Gesamtfläche: | F20: 60 | G20: 50 | H20: =F20*G20 -> 3000
B21: Datum der Erfassung: | E21: Verwaltung | F21: 15 | G21: 15 | H21: =F21*G21 -> 225
B22: 2018-10-24 | E22: Lagerraum | F22: 60 | G22: 15 | H22: =F22*G22 -> 900
B23: Datum der Bewertung: | E23: Manipulation | F23: Rest | H23: =H20-H21-H22 -> 1875 | I23: =H23*50 -> 93750
B24: 2018-10-24
B26: Abschreibung ab 2020
B27: =J54 -> 8178
D37: Verwaltungsgebäude: | F37: =225*2.6 -> 585 | G37: Preis pro m³ | H37: 376
E38: Buchwert 31.12.2019 (=AW per 01.01.2020): | H38: 79110 | I38: =H38 -> 79110
D40: Abschreibung ab 2020 | H40: 3164 | I40: =H40 -> 3164
D42: Lagerraum:
E43: Buchwert 31.12.2019 (=AW per 01.01.2020): | H43: 79875 | I43: =H43 -> 79875
D45: Abschreibung ab 2020 | H45: 2250 | I45: =H45 -> 2250
D47: Vorplatz:
E48: Buchwert 31.12.2019 (=AW per 01.01.2020): | H48: 80161 | I48: =H48 -> 80161
D50: Abschreibung ab 2020 | H50: 2764 | I50: =H50 -> 2764
G52: Seitensumme Buchwert | J52: =I38+I43+I48 -> 239146
G54: Seitensumme Abschreibung | J54: =I40+I45+I50 -> 8178
E56: Der Steirische Leitfaden:

Sheet 280_Geleist_Anzahlung_Anlagen
B1: Zurück
E2: Im Bau befindliche Grundstückseinrichtungen:
G3: Ungeschützter Zellbereich:
E4: 1028 Geleistete Anzahlungen für Anlagen
B6: EBK-Konto:
B7: 280 Geleistete Anzahlungen für Anlagen
B19: Seitensumme:
B20: 0
B21: Datum der Erfassung:
B22: 2016-01-01
B23: Datum der Bewertung:
B24: 2016-01-01

Sheet 060_ Im Bau bef GrundstücksEinr
B1: Zurück
E2: Im Bau befindliche Grundstückseinrichtungen:
G3: Ungeschützter Zellbereich:
E4: 1028 Im Bau befindliche Grundstückseinrichtungen
B6: EBK-Konto: | E6: Der Steirische Leitfaden:
B7: 060 Im Bau befindliche Grundstücks-einrichtungen
B19: Seitensumme:
B20: 0
B21: Datum der Erfassung:
B22: 2016-01-01
B23: Datum der Bewertung:
B24: 2016-01-01

Sheet 061_ Im Bau bef Geb_Bauten
B1: Zurück | D1: Im Bau befindliche Gebäude und Bauten:
G2: Ungeschützter Zellbereich:
E3: 1028 Im Bau befindliche Gebäude und Bauten
E4: Der Steirische Leitfaden:
B8: EBK-Konto:
B9: 061 Im Bau befindliche Gebäude und Bauten
B19: Seitensumme:
B20: 0
B21: Datum der Erfassung:
B22: 2016-01-01
B23: Datum der Bewertung:
B24: 2016-01-01

Sheet 062_ Im Bau bef Anlagen_Fahrz_M
B1: Zurück
E2: Im Bau befindliche technische Anlagen/Fahrzeuge/Maschinen
G3: Ungeschützter Zellbereich:
E4: 1028 Im Bau befindliche technische Anlagen/Fahrzeuge/Maschinen
B7: EBK-Konto:
B8: 062 Im Bau befindliche technische Anlagen/Fahrzeuge/Maschinen
B19: Seitensumme:
B20: 0
B21: Datum der Erfassung:
B22: 2016-01-01
B23: Datum der Bewertung:
B24: 2016-01-01

Sheet 063_ Im Bau befindl Anlagen
B1: Zurück
G3: Ungeschützter Zellbereich:
E4: 1028 Im Bau befindliche Anlagen (Amts-, Betriebs-und Geschäftsausstattung)
B5: EBK-Konto:
B6: 063 Im Bau befindliche Anlagen (Amts-,Betriebs-und Geschäftsausstattung)
B19: Seitensumme:
B20: 0
B21: Datum der Erfassung:
B22: 2016-01-01
B23: Datum der Bewertung:
B24: 2016-01-01

Sheet Hintergrund
